bitfinex/quotes_SOLUSD_20241231
["timestamp","ask_amount","ask_price","bid_price","bid_amount"]
[1735613560505,3.7808,191.05,190.85,9.61296772]
[1735613560694,3.7808,191.05,190.84,9.61296772]
[1735613561090,23.776884,191.04,190.84,9.61296772]
[1735613561771,20.0,190.97,190.79,1.6439]
[1735613561971,20.0,190.93,190.8,9.61296772]
[1735613562204,23.776884,190.88,190.8,9.61296772]
[1735613562371,23.776884,190.88,190.8,16.53317635]
[1735613562581,20.0,191.0,190.8,16.53317635]
[1735613562884,20.0,190.91,190.82,16.53317635]
[1735613563079,23.776884,190.9,190.8,16.53317635]
[1735613563279,20.0,190.91,190.82,16.53317635]
[1735613563700,23.776884,190.9,190.82,16.53317635]
[1735613563887,20.0,190.87,190.78,16.53317635]
[1735613564075,20.0,190.87,190.79,16.53317635]
[1735613564272,2.6185,190.95,190.82,16.53317635]
[1735613564475,2.6179,191.0,190.82,16.53317635]
[1735613564802,20.0,190.92,190.82,16.53317635]
[1735613565007,23.776884,190.91,190.82,16.53317635]
[1735613565189,20.0,190.88,190.8,16.53317635]
[1735613565507,23.776884,190.87,190.78,16.53317635]
[1735613566022,2.6176,191.01,190.82,16.53317635]
[1735613566491,43.776884,191.0,190.81,16.53317635]
[1735613566983,20.0,190.91,190.8,16.53317635]
[1735613567181,2.6179,190.99,190.82,16.53317635]
[1735613567498,20.0,190.91,190.8,16.53317635]
[1735613567702,23.776884,190.9,190.8,16.53317635]
[1735613567898,20.0,190.87,190.8,16.53317635]
[1735613568203,23.776884,190.91,190.8,16.53317635]
[1735613568407,43.776884,190.88,190.8,16.53317635]
[1735613570314,43.776884,190.88,190.78,16.53317635]
[1735613570496,46.396284,190.88,190.74,16.53317635]
[1735613570686,46.396284,190.88,190.71,7.06497964]
[1735613570687,46.396284,190.88,190.73,16.53317635]
[1735613570987,46.396284,190.88,190.74,16.53317635]
[1735613572389,51.635084,190.88,190.74,16.53317635]
[1735613572697,51.635084,190.88,190.73,16.53317635]
[1735613573097,51.635084,190.88,190.72,16.53317635]
[1735613573403,51.635084,190.88,190.73,16.53317635]
[1735613574113,51.635084,190.88,190.72,16.53317635]
[1735613575316,51.635084,190.88,190.7,16.53317635]
[1735613575516,51.635084,190.88,190.69,16.53317635]
[1735613575716,51.635084,190.88,190.68,16.53317635]
[1735613576306,51.635084,190.88,190.69,16.53317635]
[1735613577717,51.635084,190.88,190.68,16.53317635]
[1735613578211,20.0,190.83,190.68,16.53317635]
[1735613578419,20.0,190.79,190.67,16.53317635]
[1735613578711,23.776884,190.78,190.67,16.53317635]
[1735613578917,20.0,190.75,190.66,6.4228]
[1735613579411,20.0,190.75,190.68,16.53317635]
[1735613580116,2.6201,190.83,190.69,16.53317635]
[1735613580329,2.6201,190.83,190.68,17.31967126]
[1735613580693,20.0,190.79,190.68,17.31967126]
[1735613584221,20.0,190.79,190.68,11.37946789]
[1735613584431,20.0,190.79,190.67,10.59297298]
[1735613585417,20.0,190.82,190.68,11.37945851]
[1735613585606,20.0,190.82,190.69,10.59297298]
[1735613585793,20.0,190.78,190.69,10.59297298]
[1735613586724,20.0,190.8,190.69,10.59297298]
[1735613587226,2.6201,190.83,190.69,10.59297298]
[1735613587398,7.8591,190.86,190.69,10.59297298]
[1735613587600,23.776884,190.85,190.68,10.59297298]
[1735613587927,20.0,190.78,190.68,10.59297298]
[1735613588101,20.0,190.78,190.69,0.78639073]
[1735613591526,20.0,190.78,190.68,10.59297298]
[1735613592056,20.0,190.78,190.69,0.78640729]
[1735613594925,20.0,190.78,190.68,10.59297298]
[1735613596952,20.0,190.78,190.69,0.78640162]
[1735613597949,20.0,190.78,190.7,12.22667298]
[1735613598163,2.6197,190.86,190.72,10.59297298]
[1735613598338,2.6197,190.86,190.75,10.59297298]
[1735613598656,20.0,190.84,190.75,10.59297298]
[1735613599357,20.0,190.84,190.74,10.59297298]
[1735613599651,2.6197,190.86,190.74,10.59297298]
[1735613599857,2.6197,190.86,190.75,10.59297298]
[1735613600263,20.0,190.84,190.75,10.59297298]
[1735613600467,7.9664,190.87,190.75,10.59297298]
[1735613601053,20.0,190.84,190.74,10.59297298]
[1735613601781,20.0,190.84,190.73,10.59297298]
[1735613603765,23.776884,190.83,190.73,10.59297298]
[1735613603967,23.776884,190.83,190.72,10.59297298]
[1735613604961,23.776884,190.83,190.71,10.59297298]
[1735613606043,20.0,190.8,190.7,1.6337]
[1735613606967,20.0,190.8,190.7,12.22667298]
[1735613608244,20.0,190.8,190.7,1.6337]
[1735613608483,26.397084,190.83,190.7,12.22667298]
[1735613610288,20.0,190.8,190.7,12.22667298]
[1735613611854,20.0,190.8,190.7,1.6337]
[1735613618565,23.776884,190.79,190.66,8.78066348]
[1735613618781,20.0,190.76,190.66,7.9942]
[1735613620075,20.0,190.76,190.66,1.5714]
[1735613620380,23.776884,190.75,190.66,1.5714]
[1735613620574,20.0,190.72,190.62,10.59297298]
[1735613620984,20.0,190.72,190.61,19.07184883]
[1735613621180,20.0,190.72,190.63,2.79916991]
[1735613621880,20.0,190.72,190.61,19.07184883]
[1735613622095,4.1793,190.78,190.64,10.59297298]
[1735613622289,4.1793,190.78,190.65,10.59297298]
[1735613622500,20.0,190.74,190.65,10.59297298]
[1735613626308,20.0,190.74,190.64,11.37951541]
[1735613628215,20.0,190.74,190.64,0.78654243]
[1735613630425,20.0,190.74,190.61,18.28517298]
[1735613630601,20.0,190.74,190.62,0.78669713]
[1735613632214,20.0,190.74,190.62,11.37967011]
[1735613632925,20.0,190.74,190.62,0.78669713]
[1735613639828,2.6215,190.73,190.62,0.78669713]
[1735613640005,26.398384,190.73,190.61,7.6922]
[1735613640319,20.0,190.7,190.61,7.6922]
[1735613641048,20.0,190.7,190.61,1.5714]
[1735613641849,20.0,190.69,190.61,1.5714]
[1735613645650,46.399084,190.68,190.56,8.0484]
[1735613646324,46.399084,190.68,190.56,1.5213]
[1735613647021,46.399084,190.68,190.52,1.6153]
[1735613647552,51.643384,190.68,190.52,1.6153]
[1735613664141,56.887684,190.68,190.52,1.6153]
[1735613665853,20.0,190.63,190.52,1.6153]
[1735613666061,20.0,190.55,190.52,1.6153]
[1735613666438,20.0,190.55,190.48,1.635]
[1735613668061,20.0,190.59,190.48,1.635]
[1735613668661,20.0,190.57,190.48,1.635]
[1735613675464,26.400684,190.56,190.48,1.635]
[1735613675668,20.0,190.53,190.48,1.635]
[1735613676774,20.0,190.49,190.44,1.5002]
[1735613678964,5.2472,190.58,190.44,1.5002]
[1735613679367,23.776884,190.57,190.44,1.5002]
[1735613680197,20.0,190.54,190.44,1.5002]
[1735613683092,23.776884,190.54,190.44,1.5002]
[1735613683274,23.776884,190.5,190.44,1.5002]
[1735613683793,20.0,190.47,190.37,8.0234]
[1735613700593,20.0,190.47,190.37,18.61637298]
[1735613700795,20.0,190.47,190.37,19.40405844]
[1735613701224,20.0,190.47,190.37,8.81108546]
[1735613701724,8.7571,190.56,190.4,12.15147298]
[1735613701928,23.776884,190.55,190.41,0.78751396]
[1735613702321,20.0,190.52,190.4,1.5585]
[1735613702523,20.0,190.48,190.4,1.5585]
[1735613703523,20.0,190.53,190.4,1.5585]
[1735613703691,20.0,190.53,190.4,2.34604124]
[1735613704738,2.6238,190.56,190.42,10.59297298]
[1735613704901,22.6238,190.56,190.43,0.78743446]
[1735613706299,2.6238,190.56,190.44,1.5585]
[1735613706900,20.0,190.52,190.44,1.5585]
[1735613712528,2.6242,190.54,190.44,1.5585]
[1735613712914,23.776884,190.56,190.44,1.5585]
[1735613713228,1.6049,190.59,190.45,11.38043614]
[1735613713434,6.1333,190.61,190.45,11.38043614]
[1735613714008,20.0,190.57,190.45,11.38043614]
[1735613714333,2.6232,190.61,190.48,12.20467298]
[1735613714505,2.6232,190.61,190.49,0.78718678]
[1735613715338,22.6232,190.61,190.49,0.78718678]
[1735613717542,22.6232,190.61,190.48,1.6117]
[1735613717543,20.0,190.58,190.48,1.6117]
[1735613717744,43.776884,190.57,190.48,1.6117]
[1735613719123,2.6238,190.56,190.46,6.1592]
[1735613719326,2.6238,190.56,190.43,1.6499]
[1735613723058,52.00976974,190.57,190.43,1.6499]
[1735613723229,20.0,190.5,190.43,1.6499]
[1735613725528,20.0,190.5,190.41,6.2195]
[1735613726723,2.6248,190.49,190.41,6.2195]
[1735613726923,2.6248,190.49,190.39,1.6055]
[1735613726924,23.776884,190.48,190.39,1.6055]
[1735613727232,20.0,190.45,190.39,1.6055]
[1735613729756,2.6248,190.49,190.39,1.6055]
[1735613730459,20.0,190.48,190.39,1.6055]
[1735613731583,22.6248,190.49,190.39,1.6055]
[1735613731791,20.0,190.46,190.39,1.6055]
[1735613732280,20.0,190.47,190.39,1.6055]
[1735613732859,20.0,190.43,190.37,6.2176]
[1735613733149,20.0,190.43,190.35,1.6055]
[1735613733484,20.0,190.47,190.35,1.6055]
[1735613734958,23.776884,190.46,190.35,1.6055]
[1735613735278,20.0,190.43,190.35,1.6055]
[1735613735764,2.6257,190.42,190.35,1.6055]
[1735613740877,2.6257,190.42,190.32,6.2176]
[1735613743086,20.0,190.43,190.32,6.2176]
[1735613745776,2.6253,190.45,190.32,7.00557117]
[1735613745994,2.6253,190.45,190.32,17.59854415]
[1735613746290,20.0,190.44,190.32,17.59854415]
[1735613746790,22.6253,190.45,190.32,17.59854415]
[1735613747296,22.6253,190.45,190.32,7.00557117]
[1735613747589,22.6253,190.45,190.32,6.2176]
[1735613748093,20.0,190.42,190.32,6.2176]
[1735613750893,23.776884,190.47,190.32,6.2176]
[1735613751088,43.776884,190.44,190.32,6.2176]
[1735613752198,46.402484,190.44,190.32,6.2176]
[1735613764219,51.653384,190.44,190.32,6.2176]
[1735613765516,51.653384,190.44,190.31,1.612]
[1735613767005,20.0,190.39,190.31,1.612]
[1735613767193,20.0,190.35,190.31,1.612]
[1735613773216,20.0,190.39,190.31,1.612]
[1735613774318,2.6263,190.38,190.31,1.612]
[1735613778493,20.0,190.34,190.31,1.612]
[1735613779223,20.0,190.35,190.31,1.612]
[1735613779431,20.0,190.35,190.28,6.4462]
[1735613785027,20.0,190.35,190.26,1.5073]
[1735613798156,20.0,190.31,190.26,1.5073]
[1735613800161,20.0,190.33,190.26,1.5073]
[1735613800665,22.6268,190.35,190.26,1.5073]
[1735613801067,20.0,190.35,190.26,1.5073]
[1735613801234,20.0,190.36,190.26,1.5073]
[1735613802059,23.776884,190.35,190.26,1.5073]
[1735613802741,20.0,190.32,190.26,1.5073]
[1735613807769,20.0,190.35,190.26,1.5073]
[1735613808363,20.0,190.34,190.26,1.5073]
[1735613811376,16.900725,190.39,190.27,35.15811779]
[1735613811575,16.900725,190.39,190.28,16.69247298]
[1735613811576,6.307752,190.39,190.28,16.69247298]
[1735613812098,6.307752,190.39,190.28,19.79622273]
[1735613812469,20.0,190.37,190.28,16.69247298]
[1735613812900,20.0,190.4,190.29,11.38102572]
[1735613813576,20.0,190.41,190.29,0.78805274]
[1735613815792,2.6259,190.42,190.29,0.78805274]
[1735613815793,14.54504968,190.44,190.3,12.16827298]
[1735613815982,14.54504968,190.44,190.31,10.59297298]
[1735613816299,8.23288574,190.44,190.31,11.38090907]
[1735613816882,20.0,190.41,190.31,11.38090907]
[1735613817493,20.0,190.41,190.31,0.78793609]
[1735613817889,20.0,190.41,190.3,1.5753]
[1735613820594,20.0,190.41,190.3,12.95630373]
[1735613821014,20.0,190.41,190.3,2.36333075]
[1735613825110,20.0,190.35,190.3,1.5753]
[1735613825280,20.0,190.35,190.28,6.0995]
[1735613825281,20.0,190.37,190.28,6.0995]
[1735613825999,20.0,190.35,190.28,6.0995]
[1735613826903,20.0,190.35,190.25,1.597]
[1735613833698,23.776884,190.38,190.25,1.597]
[1735613833887,20.0,190.35,190.25,1.597]
[1735613834401,2.6262,190.39,190.25,12.18997298]
[1735613835012,22.6262,190.39,190.25,12.18997298]
[1735613835207,22.6262,190.39,190.26,0.78814952]
[1735613836320,22.6262,190.39,190.25,1.597]
[1735613836525,22.6262,190.39,190.25,12.18997298]
[1735613840016,22.6262,190.39,190.26,10.59297298]
[1735613841622,22.6262,190.39,190.25,1.597]
[1735613841916,22.6262,190.39,190.25,12.18997298]
[1735613843125,22.6262,190.39,190.25,1.597]
[1735613844126,22.6262,190.39,190.25,12.18997298]
[1735613845721,2.6258,190.42,190.27,18.23787298]
[1735613845891,2.6258,190.42,190.28,11.38101035]
[1735613846091,14.53149705,190.44,190.3,1.5205]
[1735613846291,14.53149705,190.44,190.31,16.71737298]
[1735613846523,8.23288574,190.44,190.32,0.78790863]
[1735613846828,20.0,190.42,190.32,0.78790863]
[1735613847628,6.36706826,190.45,190.32,0.78790863]
[1735613847925,2.6253,190.45,190.32,0.78790863]
[1735613849539,20.0,190.46,190.33,1.5205]
[1735613849731,20.0,190.46,190.34,0.78784227]
[1735613852032,20.0,190.46,190.34,11.38081525]
[1735613853532,6.36666826,190.49,190.34,11.38081525]
[1735613853723,23.776884,190.48,190.34,0.78784227]
[1735613860350,20.0,190.46,190.35,18.46337298]
[1735613860525,20.0,190.46,190.36,0.7877304]
[1735613860925,20.0,190.5,190.36,11.38070338]
[1735613861119,2.6243,190.53,190.37,12.20867298]
[1735613861319,2.6243,190.53,190.38,0.78763298]
[1735613861950,20.0,190.49,190.38,0.78763298]
[1735613867018,2.6243,190.53,190.39,16.84767298]
[1735613867235,3.74176826,190.54,190.4,12.99627347]
[1735613867444,20.0,190.54,190.4,12.99627347]
[1735613868250,2.6237,190.57,190.43,1.6157]
[1735613868454,2.6237,190.57,190.44,6.2547]
[1735613868755,20.0,190.56,190.44,6.2547]
[1735613881163,2.6232,190.61,190.46,12.15937298]
[1735613881466,2.6232,190.61,190.47,0.78726765]
[1735613881467,20.0,190.58,190.47,0.78726765]
[1735613881634,23.776884,190.6,190.47,0.78726765]
[1735613882137,2.6232,190.61,190.48,1.5664]
[1735613882366,6.36446826,190.64,190.5,10.59297298]
[1735613882561,20.0,190.63,190.52,1.5664]
[1735613882767,2.6227,190.64,190.52,1.5664]
[1735613882942,20.0,190.63,190.52,1.5664]
[1735613883442,2.6227,190.64,190.52,1.5664]
[1735613884344,20.0,190.64,190.52,1.5664]
[1735613884762,20.0,190.64,190.53,6.6648]
[1735613886953,2.6223,190.67,190.53,6.6648]
[1735613887154,2.6223,190.67,190.54,0.78699813]
[1735613887581,20.0,190.66,190.55,1.6562]
[1735613887748,2.6219,190.7,190.56,0.78694484]
[1735613891867,20.0,190.66,190.56,0.78694484]
[1735613893772,2.6219,190.7,190.56,0.78694484]
[1735613894072,20.0,190.69,190.57,6.5118]
[1735613894277,20.0,190.69,190.58,0.78679875]
[1735613896274,20.0,190.69,190.59,1.6562]
[1735613896580,20.0,190.69,190.6,8.95479068]
[1735613896881,2.6214,190.74,190.6,8.95479068]
[1735613897452,20.0,190.7,190.6,8.168]
[1735613898179,22.6214,190.74,190.6,8.168]
[1735613898778,20.0,190.7,190.6,8.168]
[1735613907379,5.242,190.77,190.6,8.168]
[1735613907590,20.0,190.74,190.6,8.168]
[1735613907792,20.0,190.7,190.6,8.168]
[1735613908978,20.0,190.76,190.61,37.6793239]
[1735613909987,23.776884,190.75,190.61,37.6793239]
[1735613910492,20.0,190.72,190.61,37.6793239]
[1735613910684,23.776884,190.75,190.61,24.5636239]
[1735613912599,20.0,190.72,190.61,35.15659688]
[1735613913297,20.0,190.72,190.62,1.5386]
[1735613914193,43.776884,190.71,190.62,1.5386]
[1735613914693,43.776884,190.71,190.6,6.5118]
[1735613914694,46.398584,190.71,190.6,6.5118]
[1735613914865,46.398584,190.71,190.58,1.5386]
[1735613918500,51.642084,190.71,190.58,1.5386]
[1735613919091,51.642084,190.71,190.55,6.5607]
[1735613926381,20.0,190.66,190.54,1.6334]
[1735613926580,23.776884,190.61,190.54,1.6334]
[1735613926788,20.0,190.58,190.54,1.6334]
[1735613926982,20.0,190.58,190.5,6.1067]
[1735613926983,20.0,190.58,190.5,7.7401]
[1735613927203,20.0,190.54,190.5,1.6334]
[1735613927425,20.0,190.54,190.46,6.1067]
[1735613927709,22.6241,190.54,190.46,6.1067]
[1735613928612,20.0,190.56,190.46,6.1067]
[1735613928988,20.0,190.56,190.47,10.59297298]
[1735613929203,2.6227,190.64,190.49,16.69967298]
[1735613929407,2.6227,190.64,190.49,18.33307298]
[1735613930007,23.776884,190.63,190.49,18.33307298]
[1735613930400,20.0,190.6,190.49,18.33307298]
[1735613930906,23.776884,190.63,190.49,7.7401]
[1735613931288,20.0,190.6,190.49,7.7401]
[1735613933084,20.0,190.56,190.49,7.7401]
[1735613937000,2.623,190.62,190.49,7.7401]
[1735613937213,20.0,190.61,190.49,7.7401]
[1735613937386,23.776884,190.61,190.49,7.7401]
[1735613937894,2.623,190.62,190.49,7.7401]
[1735613938096,2.6226,190.65,190.5,11.38021948]
[1735613938305,2.6226,190.65,190.51,12.19387298]
[1735613938818,4.2239,190.68,190.52,10.59297298]
[1735613939319,20.0,190.67,190.52,23.71487298]
[1735613939494,20.0,190.67,190.53,19.08995633]
[1735613940092,43.776884,190.67,190.54,10.59297298]
[1735613940316,20.0,190.67,190.54,10.59297298]
[1735613941144,43.776884,190.67,190.54,10.59297298]
[1735613942123,43.776884,190.67,190.55,10.59297298]
[1735613942416,20.0,190.67,190.55,10.59297298]
[1735613942618,3.74176826,190.7,190.57,1.6009]
[1735613942920,2.6213,190.75,190.58,17.48881726]
[1735613943092,2.6213,190.75,190.6,12.19387298]
[1735613943292,2.6213,190.75,190.6,12.98058966]
[1735613943914,23.776884,190.74,190.6,12.98058966]
[1735613944617,3.74176826,190.76,190.61,34.36985698]
[1735613944822,3.74176826,190.76,190.63,6.109]
[1735613945123,2.6208,190.79,190.63,6.109]
[1735613945124,20.0,190.77,190.64,1.6009]
[1735613945423,20.0,190.73,190.64,2.38750508]
[1735613945792,2.6208,190.79,190.64,12.98047806]
[1735613945991,23.776884,190.78,190.64,12.98047806]
[1735613947127,20.0,190.75,190.64,12.98047806]
[1735613950326,20.0,190.75,190.64,2.38750508]
[1735613950625,20.0,190.75,190.64,12.98047806]
[1735613953114,20.0,190.75,190.65,10.59297298]
[1735613953319,20.0,190.75,190.66,0.78649555]
[1735613953506,20.0,190.75,190.64,1.6009]
[1735613957240,23.776884,190.74,190.64,1.6009]
[1735613957406,20.0,190.71,190.64,1.6009]
[1735613968665,2.6205,190.8,190.64,1.6009]
[1735613968819,10.592973,190.78,190.64,1.6009]
[1735613969023,20.0,190.75,190.64,1.6009]
[1735613969224,2.6205,190.8,190.64,1.6009]
[1735613969555,20.0,190.75,190.64,1.6009]
[1735613970264,20.0,190.76,190.64,1.6009]
[1735613975362,23.776884,190.75,190.64,1.6009]
[1735613975658,20.0,190.72,190.64,1.6009]
[1735613980361,20.0,190.68,190.58,7.7281]
[1735613984364,20.0,190.68,190.58,18.32107298]
[1735613984668,20.0,190.68,190.59,10.59297298]
[1735613985964,20.0,190.68,190.58,19.10790169]
[1735613991375,20.0,190.68,190.58,8.51492871]
[1735613991944,20.0,190.68,190.58,19.10790169]
[1735613994481,20.0,190.68,190.58,7.7281]
[1735614007656,20.0,190.68,190.58,18.32107298]
[1735614007856,20.0,190.68,190.59,11.37975825]
[1735614008692,20.0,190.68,190.59,0.78678527]
[1735614009185,20.0,190.68,190.58,7.7281]
[1735614011370,2.6223,190.67,190.58,7.7281]
[1735614011566,23.776884,190.66,190.58,1.5877]
[1735614011770,20.0,190.63,190.58,1.5877]
[1735614012582,20.0,190.63,190.54,1.6365]
[1735614013767,2.6219,190.7,190.54,1.6365]
[1735614013982,20.0,190.68,190.54,13.01645924]
[1735614015682,20.0,190.65,190.54,13.01645924]
[1735614015985,2.6219,190.7,190.58,10.59297298]
[1735614016209,2.6219,190.7,190.59,8.0021]
[1735614016387,20.0,190.69,190.59,8.0021]
[1735614016683,2.6219,190.7,190.59,8.0021]
[1735614017265,2.6219,190.7,190.59,1.6365]
[1735614017266,43.776884,190.7,190.59,1.6365]
[1735614018467,23.776884,190.68,190.59,1.6365]
[1735614018666,20.0,190.65,190.59,1.6365]
[1735614019380,20.0,190.65,190.55,7.9614]
[1735614019888,20.0,190.61,190.55,1.5958]
[1735614020182,20.0,190.61,190.51,1.5958]
[1735614020684,22.6232,190.61,190.51,1.5958]
[1735614023281,2.6226,190.65,190.52,10.59297298]
[1735614023608,14.51132095,190.66,190.56,10.59297298]
[1735614024087,6.27843521,190.66,190.54,10.59297298]
[1735614024265,3.74176826,190.7,190.54,10.59297298]
[1735614024468,20.0,190.65,190.54,10.59297298]
[1735614025386,2.6224,190.67,190.53,10.59297298]
[1735614025585,2.6224,190.67,190.52,10.59297298]
[1735614025793,2.6224,190.67,190.53,10.59297298]
[1735614026392,2.6224,190.67,190.51,1.5958]
[1735614026566,2.6224,190.67,190.52,10.59297298]
[1735614026768,2.6224,190.67,190.53,10.59297298]
[1735614031301,20.0,190.61,190.51,1.5958]
[1735614031792,2.6224,190.67,190.51,1.5958]
[1735614031793,20.0,190.63,190.51,1.5958]
[1735614032200,20.0,190.63,190.52,10.59297298]
[1735614037079,23.776884,190.66,190.54,10.59297298]
[1735614037301,2.6224,190.67,190.56,16.92537298]
[1735614037485,20.0,190.65,190.56,16.92537298]
[1735614037699,2.6224,190.67,190.56,16.92537298]
[1735614041227,2.6219,190.7,190.57,10.59297298]
[1735614041427,2.6219,190.7,190.58,10.59297298]
[1735614041906,20.0,190.68,190.58,10.59297298]
[1735614042117,20.0,190.68,190.6,12.15067298]
[1735614042613,20.0,190.71,190.6,12.15067298]
[1735614043209,43.776884,190.72,190.6,12.15067298]
[1735614045019,43.776884,190.72,190.6,1.5577]
[1735614051431,43.776884,190.72,190.6,12.15067298]
[1735614052016,43.776884,190.72,190.61,6.4879]
[1735614055838,23.776884,190.7,190.61,6.4879]
[1735614056040,20.0,190.67,190.6,1.5577]
[1735614059454,22.6224,190.67,190.6,1.5577]
[1735614060814,20.0,190.67,190.6,1.5577]
[1735614062827,20.0,190.63,190.55,1.6299]
[1735614063006,20.0,190.62,190.55,1.6299]
[1735614068050,23.776884,190.63,190.55,1.6299]
[1735614070444,20.0,190.67,190.55,1.6299]
[1735614070624,20.0,190.67,190.55,12.22287298]
[1735614071151,20.0,190.67,190.56,10.59297298]
[1735614071551,20.0,190.67,190.57,10.59297298]
[1735614071731,3.74176826,190.7,190.59,6.3925]
[1735614072049,20.0,190.71,190.59,16.98547298]
[1735614072240,20.0,190.71,190.6,1.5669]
[1735614072426,12.62790728,190.75,190.6,12.15987298]
[1735614072639,6.36296826,190.75,190.61,10.59297298]
[1735614072843,23.776884,190.74,190.61,10.59297298]
[1735614074157,20.0,190.72,190.61,10.59297298]
[1735614075171,20.0,190.72,190.6,12.15987298]
[1735614075462,23.776884,190.71,190.6,1.5669]
[1735614076462,23.776884,190.67,190.56,1.5669]
[1735614077633,20.0,190.64,190.56,1.5669]
[1735614080449,22.6227,190.64,190.56,1.5669]
[1735614081751,20.0,190.64,190.56,1.5669]
[1735614088558,22.6228,190.64,190.56,1.5669]
[1735614091770,22.6228,190.64,190.54,6.3925]
[1735614092264,20.0,190.6,190.51,1.6313]
[1735614092564,20.0,190.56,190.51,1.6313]
[1735614092769,20.0,190.56,190.46,1.6313]
[1735614094147,20.0,190.52,190.46,1.6313]
[1735614094458,2.6241,190.54,190.46,1.6313]
[1735614094766,21.6294,190.56,190.46,1.6313]
[1735614094972,2.6237,190.57,190.46,1.6313]
[1735614095173,20.0,190.53,190.46,1.6313]
[1735614095354,20.0,190.49,190.41,7.8076]
[1735614097061,2.6239,190.56,190.41,18.40057298]
[1735614097375,22.6239,190.56,190.42,10.59297298]
[1735614097683,43.776884,190.55,190.41,18.40057298]
[1735614097971,20.0,190.53,190.41,7.8076]
[1735614098954,20.0,190.49,190.41,7.8076]
[1735614099963,20.0,190.49,190.41,1.6313]
[1735614100177,23.776884,190.48,190.41,1.6313]
[1735614100781,2.6249,190.49,190.41,1.6313]
[1735614101659,20.0,190.49,190.41,1.6313]
[1735614101963,20.0,190.48,190.41,1.6313]
[1735614105183,2.6243,190.53,190.41,1.6313]
[1735614105682,20.0,190.45,190.36,8.0496]
[1735614108794,20.0,190.41,190.31,1.629]
[1735614109094,20.0,190.37,190.31,1.629]
[1735614113301,2.625,190.47,190.31,1.629]
[1735614113496,2.625,190.47,190.32,10.59297298]
[1735614113701,1.5578,190.48,190.34,10.59297298]
[1735614113909,20.0,190.47,190.35,10.59297298]
[1735614114074,1.5578,190.48,190.35,10.59297298]
[1735614114282,2.6246,190.51,190.36,10.59297298]
[1735614116346,20.0,190.47,190.35,17.39623811]
[1735614116486,20.0,190.47,190.34,7.7831]
[1735614117310,20.0,190.5,190.34,7.7831]
[1735614117507,20.0,190.44,190.34,7.7831]
[1735614118323,23.776884,190.43,190.34,7.7831]
[1735614118907,2.6253,190.45,190.34,7.7831]
[1735614119306,20.0,190.42,190.34,7.7831]
[1735614119808,2.6253,190.45,190.34,7.7831]
[1735614120826,23.776884,190.44,190.34,7.7831]
[1735614122223,20.0,190.46,190.34,7.7831]
[1735614122824,20.0,190.44,190.34,7.7831]
[1735614126838,20.0,190.42,190.34,7.7831]
[1735614127627,20.0,190.42,190.29,8.0952]
[1735614127816,20.0,190.38,190.29,8.0952]
[1735614130938,23.776884,190.37,190.29,8.0952]
[1735614131240,20.0,190.34,190.29,1.6231]
[1735614131614,20.0,190.34,190.24,8.0952]
[1735614132344,20.0,190.3,190.24,1.6231]
[1735614133215,20.0,190.3,190.2,1.6231]
[1735614133412,23.776884,190.29,190.2,1.6231]
[1735614133614,20.0,190.26,190.2,1.6231]
[1735614135209,20.0,190.26,190.15,3.08886677]
[1735614135517,20.0,190.22,190.15,3.08886677]
[1735614135733,20.0,190.22,190.14,8.0952]
[1735614137949,2.6279,190.27,190.14,8.0952]
[1735614138942,20.0,190.24,190.14,8.0952]